﻿Department family,Entity,Date,Expense type,Expense area,Supplier,Transaction number,Amount,Description,Supplier Postcode
Families & Specialist Services,Radiology,16/11/2022,Contractual Clinical Services,Rad General,4 Ways Healthcare Ltd,4WHC/06233509,"44,008.15 ",Outsourcied teleradiology reporting ,HP2 7BF
Families & Specialist Services,Radiology,25/11/2022,Contractual Clinical Services,Rad General,4 Ways Healthcare Ltd,4WHC/0723 0008,"70,002.34 ",Outsourcied teleradiology reporting ,HP2 7BF
Pmu,Pmu,18/11/2022,Drugs,Pmu,Aah Pharmaceuticals Ltd,67213523H,"32,877.37 ",Pharmaceutical purchase,CV2 2ZG
CHS Estates,L2 Estates,01/12/2022,Other Clinical Costs,Management Estates,Agfa Finance,DEIN/22110003,"144,073.80 ",Year 4 of 10 (28 April 2022 - 27 April 2023) PACS system. Managed Service Contract. Yorkshire Imaging Collaborative.  Payment terms: quatery in advnace.,TW8 9TH
Balance Sheet,L2 Current Assets,04/11/2022,Finished Processed Goods,Stock & Work In Progress,Alliance Healthcare Distribution Ltd,F2A654353,"40,518.84 ",Pharmaceutical purchase,KT9 1SN
Pmu,Pmu,09/11/2022,Drugs,Pmu,Alliance Healthcare Distribution Ltd,F2AB52448,"32,251.46 ",Pharmaceutical purchase,KT9 1SN
Pmu,Pmu,09/11/2022,Drugs,Pmu,Alliance Healthcare Distribution Ltd,F2AB56027,"76,904.17 ",Pharmaceutical purchase,KT9 1SN
Pmu,Pmu,11/11/2022,Drugs,Pmu,Alliance Healthcare Distribution Ltd,F2AB59236,"56,666.23 ",Pharmaceutical purchase,KT9 1SN
Pmu,Pmu,11/11/2022,Drugs,Pmu,Alliance Healthcare Distribution Ltd,F2AC53594,"44,537.74 ",Pharmaceutical purchase,KT9 1SN
Pmu,Pmu,11/11/2022,Drugs,Pmu,Alliance Healthcare Distribution Ltd,F2AC56663,"136,268.80 ",Pharmaceutical purchase,KT9 1SN
Balance Sheet,L2 Current Assets,11/11/2022,Finished Processed Goods,Stock & Work In Progress,Alliance Healthcare Distribution Ltd,F2AC56844,"40,475.88 ",Pharmaceutical purchase,KT9 1SN
Balance Sheet,L2 Current Assets,18/11/2022,Finished Processed Goods,Stock & Work In Progress,Alliance Healthcare Distribution Ltd,F2AK52462,"41,283.22 ",Pharmaceutical purchase,KT9 1SN
Balance Sheet,L2 Current Assets,25/11/2022,Finished Processed Goods,Stock & Work In Progress,Alliance Healthcare Distribution Ltd,F2AR54217,"40,550.23 ",Pharmaceutical purchase,KT9 1SN
Balance Sheet,L2 Current Assets,25/11/2022,Finished Processed Goods,Stock & Work In Progress,Alloga Uk Ltd,SIN103616322,"31,500.00 ",Pharmaceutical purchase,DE55 2FH
Pmu,Pmu,25/11/2022,Drugs,Pmu,Arena Pharmaceuticals Ltd,9402,"49,020.00 ",Pharmaceutical purchase,MK18 4DF
CHS Estates,L2 Estates,09/11/2022,Contract : Other External,Medical Physics,B Braun Sterilog (Yorkshire) Ltd,328746783,"168,612.38 ",DECONTAMINATION SERVICES FOR SURGICAL & PODIATRY,S35 2PW
CHS Estates,L2 Estates,09/11/2022,Contract : Other External,Medical Physics,B Braun Sterilog (Yorkshire) Ltd,328746789,"168,157.94 ",DECONTAMINATION SERVICES FOR SURGICAL & PODIATRY,S35 2PW
CHS Estates,L2 Estates,23/11/2022,Contract : Other External,Medical Physics,B Braun Sterilog (Yorkshire) Ltd,328746813,"167,611.85 ",DECONTAMINATION SERVICES FOR SURGICAL & PODIATRY,S35 2PW
Balance Sheet,L2 Current Assets,04/11/2022,Finished Processed Goods,Stock & Work In Progress,Bayer Plc,824C446901,"27,373.68 ",Pharmaceutical purchase,RG2 6AD
Balance Sheet,L2 Current Assets,11/11/2022,Finished Processed Goods,Stock & Work In Progress,Bayer Plc,824C448576,"27,373.68 ",Pharmaceutical purchase,RG2 6AD
Balance Sheet,L2 Current Assets,16/11/2022,Finished Processed Goods,Stock & Work In Progress,Bayer Plc,824C450282,"114,057.00 ",Pharmaceutical purchase,RG2 6AD
Balance Sheet,L2 Current Assets,18/11/2022,Finished Processed Goods,Stock & Work In Progress,Bayer Plc,824C450721,"27,373.68 ",Pharmaceutical purchase,RG2 6AD
Balance Sheet,L2 Current Assets,25/11/2022,Finished Processed Goods,Stock & Work In Progress,Bayer Plc,824C452112,"27,373.68 ",Pharmaceutical purchase,RG2 6AD
Families & Specialist Services,Pathology,25/11/2022,Laboratory Test Kits,Microbiology,Becton Dickinson UK Ltd,230006191,"39,489.46 ",Managed Service Contract (non-CoVID) ,RG41 5TS
Surgery & Anaesthetics,Surgical Divisional Support,25/11/2022,Contractual Clinical Services,Independent Sector,Bmi Healthcare Ltd,S5712AUG22,"77,629.07 ",Provision of Elective Activity on behalf of CHFT ,SK3 0XN
Balance Sheet,L2 Current Assets,16/11/2022,Finished Processed Goods,Stock & Work In Progress,Bristol Myers Squibb Pharmaceuticals Ltd,100693683,"50,920.44 ",Pharmaceutical purchase,CH4 9QW
Surgery & Anaesthetics,Surgical Divisional Support,25/11/2022,Healthcare From Independent Sector,Elective Recovery,Calderdale And Huddersfield Orthopaedic Partnership Llp,INV-0059,"75,000.00 ",Provision of Orthopaedic and/or Specialty Healthcare Services,LS8 2JH
Corporate Services,Service Performance,11/11/2022,Minor Works,Pfi,Calderdale Hospital Spc Ltd,CASI12,"140,356.00 ",Calderdale LED Project,M20 2YY
Corporate Services,Service Performance,25/11/2022,Minor Works,Pfi,Calderdale Hospital Spc Ltd,CASI14,"132,441.29 ",New Works Instructions,M20 2YY
Corporate Services,Service Performance,18/11/2022,Contract : Other External,Pfi,Calderdale Hospital Spc Ltd,CASI7,"3,048,419.54 ",PFI contract monthly payment,M20 2YY
Corporate Services,Service Performance,11/11/2022,External Contracts : Catering,Pfi,Calderdale Hospital Spc Ltd,CASI8,"32,507.06 ",Additional variations,M20 2YY
Corporate Services,Service Performance,25/11/2022,Rates,Properties,Calderdale Metropolitan Borough Council,2.52023E+13,"73,387.00 ",Business rates for Calderdale Royal Hospital ,HX1 1TP
Corporate Services,Corporate Services,05/11/2022,Professional Fees,Corporate Services,Care Quality Commission,43126754,"30,805.40 ",Annual Fee in 10 installments 30 805.40 each,WF3 1WE
Health Informatics,Modernisation Programme,02/11/2022,Computer Software / License  Fees,Modernisation Programme,Cerner Ltd,102136616,"63,112.80 ",Cerner - Table 12: RHO Recurring Charges. Monthly  commencing from the Effective Date and continuing until the end of the Term £52 594 per month x 12 for 2022,W2 1AF
Health Informatics,Modernisation Programme,02/11/2022,Computer Software / License  Fees,Modernisation Programme,Cerner Ltd,102136706,"38,400.00 ",Cerner CCN053 Nuance Dragon Medical Once Speech recognition. monthly recurring charge £32 000. x 12 for 2022. ,W2 1AF
Health Informatics,Modernisation Programme,01/12/2022,Computer Software / License  Fees,Modernisation Programme,Cerner Ltd,102148435,"63,112.80 ",Cerner - Table 12: RHO Recurring Charges. Monthly  commencing from the Effective Date and continuing until the end of the Term £52 594 per month x 12 for 2022,W2 1AF
Health Informatics,Modernisation Programme,01/12/2022,Computer Software / License  Fees,Modernisation Programme,Cerner Ltd,102148516,"38,400.00 ",Cerner CCN053 Nuance Dragon Medical Once Speech recognition. monthly recurring charge £32 000. x 12 for 2022. to link to order rwyf400053037,W2 1AF
Families & Specialist Services,Pathology,04/11/2022,Laboratory Test Kits,Microbiology,Chrystal Consulting Ltd,61599,"105,057.55 ",Diasorin Managed Service Contract,M22 5HQ
Families & Specialist Services,Pathology,11/11/2022,Laboratory Bottles And Containers,Path General,Chrystal Consulting Ltd,61630,"252,139.52 ",Werfen Managed Service Contract contract and verification charges year 1 of 5 for blood gases and chemstats,M22 5HQ
Corporate Services,Corporate Services,02/11/2022,Med Surg Eqpt General,Corporate Services,Consultant Connect Ltd,INV-1460,"127,392.00 ",80 dermatoscopes including adaptor - C67000 Teledermatology Hardware & Software Ongoing Support & Maintenance,OX1 1DE
CHS Estates,L2 Estates,09/11/2022,Electricity,Estates Operations,EDF Energy Customers Ltd,13385475,"241,254.73 ",Mains Gas CRH ,W1T 4EZ
CHS Estates,L2 Estates,25/11/2022,Electricity,Estates Operations,EDF Energy Customers Ltd,13694837,"254,351.24 ",Mains Gas CRH ,W1T 4EZ
Balance Sheet,Fixed Assets,09/11/2022,Additions - Assets Under Construction,Capital (His),Egton Medical Information Systems Ltd,PJIN-304599,"80,640.00 ",Interface - Pharmacy Prescribing interface (HL7 EMIS Specification),LS19 6BA
CHS Facilities,L2 Facilities,02/11/2022,External Contracts : Laundry,Laundry,Elis UK Ltd,SN3508784,"106,734.54 ",Contracted Laundry Services,RG24 8NE
Medical Division,Emergency Medicine,25/11/2022,B5 Agency Nursing,A&E Nursing,Red Group Personnel Ltd,161022CH,4337.71,B5 Agency Nursing,HA3 5AB
Corporate Services,Central Operations Team CORP,25/11/2022,B5 Agency Nursing,Central Operations Team CORP,Red Group Personnel Ltd,161022CH,359.03,B5 Agency Nursing,HA3 5AB
Medical Division,Medical Specialities,25/11/2022,B5 Agency Nursing,Gastroenterology,Red Group Personnel Ltd,161022CH,669.72,B5 Agency Nursing,HA3 5AB
Medical Division,Acute Medical,25/11/2022,B5 Agency Nursing,General Medicine,Red Group Personnel Ltd,161022CH,6023.34,B5 Agency Nursing,HA3 5AB
Surgery & Anaesthetics,General Surgery,25/11/2022,B5 Agency Nursing,General Surgery,Red Group Personnel Ltd,161022CH,1060.4,B5 Agency Nursing,HA3 5AB
Medical Division,Acute Medical,25/11/2022,B5 Agency Nursing,Geriatric Medicine,Red Group Personnel Ltd,161022CH,3682.61,B5 Agency Nursing,HA3 5AB
Medical Division,Integrated Medical Specialities,25/11/2022,B5 Agency Nursing,Ims Stroke / Rehabilitation,Red Group Personnel Ltd,161022CH,5087.05,B5 Agency Nursing,HA3 5AB
Medical Division,Integrated Medical Specialities,25/11/2022,B5 Agency Nursing,Medical Oncology,Red Group Personnel Ltd,161022CH,574.44,B5 Agency Nursing,HA3 5AB
Surgery & Anaesthetics,Operating Services,25/11/2022,B5 Agency Nursing,Operating Services,Red Group Personnel Ltd,161022CH,6593.25,B5 Agency Nursing,HA3 5AB
Medical Division,Medical Specialities,25/11/2022,B5 Agency Nursing,Respiratory,Red Group Personnel Ltd,161022CH,5657.23,B5 Agency Nursing,HA3 5AB
Medical Division,Emergency Medicine,18/11/2022,B5 Agency Nursing,A&E Nursing,Red Group Personnel Ltd,231022CH,"3,867.98 ",B5 Agency Nursing,HA3 5AB
Corporate Services,Central Operations Team CORP,18/11/2022,B5 Agency Nursing,Central Operations Team CORP,Red Group Personnel Ltd,231022CH,574.44 ,B5 Agency Nursing,HA3 5AB
Surgery & Anaesthetics,General Surgery,18/11/2022,B5 Agency Nursing,Endoscopy,Red Group Personnel Ltd,231022CH,454.77 ,B5 Agency Nursing,HA3 5AB
Medical Division,Medical Specialities,18/11/2022,B5 Agency Nursing,Gastroenterology,Red Group Personnel Ltd,231022CH,"3,393.60 ",B5 Agency Nursing,HA3 5AB
Medical Division,Acute Medical,18/11/2022,B5 Agency Nursing,General Medicine,Red Group Personnel Ltd,231022CH,"8,105.96 ",B5 Agency Nursing,HA3 5AB
Surgery & Anaesthetics,General Surgery,18/11/2022,B5 Agency Nursing,General Surgery,Red Group Personnel Ltd,231022CH,689.98 ,B5 Agency Nursing,HA3 5AB
Medical Division,Acute Medical,18/11/2022,B5 Agency Nursing,Geriatric Medicine,Red Group Personnel Ltd,231022CH,"3,314.36 ",B5 Agency Nursing,HA3 5AB
Families & Specialist Services,Womens,18/11/2022,B5 Agency Nursing,Gynaecology,Red Group Personnel Ltd,231022CH,672.98 ,B5 Agency Nursing,HA3 5AB
Medical Division,Integrated Medical Specialities,18/11/2022,B5 Agency Nursing,Ims Stroke / Rehabilitation,Red Group Personnel Ltd,231022CH,"3,212.59 ",B5 Agency Nursing,HA3 5AB
Surgery & Anaesthetics,Operating Services,18/11/2022,B5 Agency Nursing,Operating Services,Red Group Personnel Ltd,231022CH,"7,168.70 ",B5 Agency Nursing,HA3 5AB
Medical Division,Medical Specialities,18/11/2022,B5 Agency Nursing,Respiratory,Red Group Personnel Ltd,231022CH,"4,904.69 ",B5 Agency Nursing,HA3 5AB
Medical Division,Emergency Medicine,25/11/2022,B5 Agency Nursing,A&E Nursing,Red Group Personnel Ltd,301022CH,"3,178.55 ",B5 Agency Nursing,HA3 5AB
Medical Division,Medical Specialities,25/11/2022,B5 Agency Nursing,Cardiology,Red Group Personnel Ltd,301022CH,598.03 ,B5 Agency Nursing,HA3 5AB
Corporate Services,Central Operations Team CORP,25/11/2022,B5 Agency Nursing,Central Operations Team CORP,Red Group Personnel Ltd,301022CH,637.85 ,B5 Agency Nursing,HA3 5AB
Surgery & Anaesthetics,General Surgery,25/11/2022,B5 Agency Nursing,Endoscopy,Red Group Personnel Ltd,301022CH,984.97 ,B5 Agency Nursing,HA3 5AB
Medical Division,Medical Specialities,25/11/2022,B5 Agency Nursing,Gastroenterology,Red Group Personnel Ltd,301022CH,418.58 ,B5 Agency Nursing,HA3 5AB
Medical Division,Acute Medical,25/11/2022,Pbr Excluded Devices (Pass Through),Diabetes Endocrinology,Insulet International Ltd,72094662,"28,499.28 ",diabetes consumables,W6 9HR
Balance Sheet,Fixed Assets,18/11/2022,Additions - Assets Under Construction,CAPITAL (Reconfig HRI),Integrated Health Projects,22110022,"877,112.56 ",STAGE 3 & 4 GMP SUBMISSION FOR THE DELIVERY OF A NEW ACCIDENT AND EMERGENCY BUILD AT THE HUDDERSFIELD ROYAL INFIRMARY ,WD24 4WW
Balance Sheet,L2 Current Assets,09/11/2022,Finished Processed Goods,Stock & Work In Progress,Janssen-Cilag Ltd,930859031,"35,769.60 ",Pharmaceutical purchase,HP12 4EG
Balance Sheet,L2 Current Assets,09/11/2022,Finished Processed Goods,Stock & Work In Progress,Janssen-Cilag Ltd,930864553,"35,769.60 ",Pharmaceutical purchase,HP12 4EG
Balance Sheet,L2 Current Assets,09/11/2022,Finished Processed Goods,Stock & Work In Progress,Janssen-Cilag Ltd,930868264,"35,769.60 ",Pharmaceutical purchase,HP12 4EG
Balance Sheet,L2 Current Assets,09/11/2022,Finished Processed Goods,Stock & Work In Progress,Janssen-Cilag Ltd,930876666,"35,776.80 ",Pharmaceutical purchase,HP12 4EG
Balance Sheet,L2 Current Assets,09/11/2022,Finished Processed Goods,Stock & Work In Progress,Janssen-Cilag Ltd,930883459,"35,769.60 ",Pharmaceutical purchase,HP12 4EG
Balance Sheet,L2 Current Assets,25/11/2022,Finished Processed Goods,Stock & Work In Progress,Janssen-Cilag Ltd,930889641,"35,779.20 ",Pharmaceutical purchase,HP12 4EG
Estates & Facilities,Estates,04/11/2022,Rates,Estates Operations,Kirklees Council,969286425_2022,"43,093.00 ",business rates for Huddersfield Royal Infirmary,HD1 2NF
Families & Specialist Services,Pharmacy,23/11/2022,Healthcare From Commercial Sector,Pharm Gen,L Rowland & Company (Retail) Ltd,1800001368,"95,044.66",Outpatient Pharmacy contract DISPENSING FEE,WA7 3DJ
Families & Specialist Services,Pharmacy,23/11/2022,Healthcare From Commercial Sector,Pharm Gen,L Rowland & Company (Retail) Ltd,1800001368,"773,895.27 ",Outpatient Pharmacy Contract. medicines costs,WA7 3DJ
Families & Specialist Services,Radiology,04/11/2022,Med Surg Eqpt Hire,Ct,Medispace B.V.,20220474,"30,025.92 ",Rental of a CM050 CT scan box with Canon Prime 160 slice CT scanner plus 2 radiographers to run the service 8am-20.00pm 7 days per week ,2712 PJ  The Netherlands
Families & Specialist Services,Radiology,14/11/2022,Med Surg Eqpt Hire,Ct,Medispace B.V.,20220499,"30,025.92 ",Rental of a CM050 CT scan box with Canon Prime 160 slice CT scanner plus 2 radiographers to run the service 8am-20.00pm 7 days per week ,2712 PJ  The Netherlands
Recharges,Recharges,23/11/2022,Healthcare From NHS Trusts,Recharges,Mid Yorkshire Hospitals NHS Trust,1600021546,"52,918.00 ",Various services provided by agreement as per West Yorkshire Association of Acute Trusts agreed methodology,WF1 4DG
Families & Specialist Services,Pathology,15/11/2022,Blood Products,Blood Sciences,NHS Blood And Transplant,7009267,"85,109.73 ",MONTHLY CONTRACT CHARGE BLOOD & COMPONENTS,LS15 7TW
Families & Specialist Services,Pathology,15/11/2022,Blood Products,Blood Sciences,NHS Blood And Transplant,7009268,"32,812.05 ",MONTHLY CONTRACT CHARGE BLOOD & COMPONENTS,LS15 7TW
Balance Sheet,L2 Long Term Creditors,02/11/2022,Lease Liabilities under IFRS 16 > 1 year,Finance Leases,NHS Property Services Ltd,H544726,"38,802.33",Todmorden Health Centre Todmorden Health Centre Tenant Rent,EC2V 7NG
Corporate Services,Service Performance,02/11/2022,Contract : Other External,Properties,NHS Property Services Ltd,H544726,"1,940.12",Todmorden Health Centre Todmorden Health Centre Rent Management Fee,EC2V 7NG
Corporate Services,Service Performance,02/11/2022,Contract : Other External,Properties,NHS Property Services Ltd,H546111,"36,341.53 ",Todmorden Health Centre Todmorden Health Centre Tenant Service Charge & Additional Sums,EC2V 7NG
Balance Sheet,L2 Long Term Creditors,02/11/2022,Lease Liabilities under IFRS 16 > 1 year,Finance Leases,NHS Property Services Ltd,H629687,"32,357.54 ",Brighouse Health Centre Tenant Rent & Rates Charge 01-Oct-2022 to 31-Dec-2022,EC2V 7NG
Balance Sheet,L2 Long Term Creditors,02/11/2022,Lease Liabilities under IFRS 16 > 1 year,Finance Leases,NHS Property Services Ltd,H629690,"40,742.45 ",Todmorden Health Centre Tenant Rent & Rent Management Fee 01-Oct-2022 to 31-Dec-2022,EC2V 7NG
Corporate Services,Service Performance,02/11/2022,Contract : Other External,Properties,NHS Property Services Ltd,H630986,"32,900.30 ",Brighouse Health Centre Tenant Service Charge & Additional Sums Client FM Services,EC2V 7NG
Corporate Services,Service Performance,02/11/2022,Contract : Other External,Properties,NHS Property Services Ltd,H630989,"36,341.53 ",Todmorden Health Centre Tenant Service Charge & Additional Sums 01-Oct-2022 to 31-Dec-2022,EC2V 7NG
Corporate Services,Quality,15/11/2022,Clinical Negligence,Quality,NHS Resolution,SICX410640,"791,186.30",Clinical Negligence provision,SW1W 9SZ
Families & Specialist Services,Womens,15/11/2022,Clinical Negligence,Womens Management,NHS Resolution,SICX410640,"857,768.00",Clinical Negligence provision,SW1W 9SZ
Corporate Services,Quality,15/11/2022,Insurance Costs,Quality,NHS Resolution,SICX410640,"20,850.40 ",Clinical Negligence provision,SW1W 9SZ
CHS Balance Sheet,Current Liabilities,04/11/2022,Non- NHS  Trade Creditors < One Year,Other Creditors,NHS Supply Chain,1123146230,"341,382.51 ",Goods delivered week ending 07/10/2022,DE55 4QJ
CHS Balance Sheet,Current Liabilities,11/11/2022,Non- NHS  Trade Creditors < One Year,Other Creditors,NHS Supply Chain,1123153067,"284,115.44 ",Goods delivered week ending 14/10/2022,DE55 4QJ
CHS Balance Sheet,Current Liabilities,11/11/2022,Non- NHS  Trade Creditors < One Year,Other Creditors,NHS Supply Chain,1123156587,"56,285.82 ",Goods delivered week ending 14/10/2022,DE55 4QJ
CHS Balance Sheet,Current Liabilities,18/11/2022,Non- NHS  Trade Creditors < One Year,Other Creditors,NHS Supply Chain,1123160428,"238,773.86 ",Goods delivered week ending 21/10/2022,DE55 4QJ
CHS Balance Sheet,Current Liabilities,18/11/2022,Non- NHS  Trade Creditors < One Year,Other Creditors,NHS Supply Chain,1123162593,"89,962.26 ",Goods delivered week ending 21/10/2022,DE55 4QJ
CHS Balance Sheet,Current Liabilities,25/11/2022,Non- NHS  Trade Creditors < One Year,Other Creditors,NHS Supply Chain,1123164669,"144,397.74 ",Goods delivered week ending 28/10/2022,DE55 4QJ
CHS Balance Sheet,Current Liabilities,25/11/2022,Non- NHS  Trade Creditors < One Year,Other Creditors,NHS Supply Chain,1123169073,"125,530.14 ",Goods delivered week ending 28/10/2022,DE55 4QJ
Balance Sheet,Fixed Assets,11/11/2022,Additions - Assets Under Construction,Capital (Surgical),NHS Supply Chain,9523000590,"36,303.62 ",1 x Anaesthetic Machine,DE55 4QJ
CHS Estates,L2 Estates,04/11/2022,Med Surg Eqpt Mtce Contracts,Management Estates,NHS Supply Chain - Maintenance,2123004751,"62,417.26 ",2 of 3 Year Platinum Maintenance Cover for Aquilion Prime CT Scanner  & Gold Cover for Vitrea Base ,DE55 4QJ
Surgery & Anaesthetics,Surgical Divisional Support,25/11/2022,Healthcare From Commercial Sector,Support Services,Omnes Healthcare Ltd,CALSEPT22,"78,035.42 ",Omnes Insouring Outpatient Capacity - ENT,SE22 8EY
Balance Sheet,Fixed Assets,25/11/2022,Additions - Assets Under Construction,Capital (His),Omnicell Ltd,9457,"28,209.16 ",Automated Medication Dispensing Cabinet - Pricing Supplement Agreement. Price: £58 769.07 as per  quote,M44 5GR
Balance Sheet,Fixed Assets,16/11/2022,Other Debtors < One Year,Capital (Medicine & Elderly),Optima Medical Ltd,26036,"115,170.00 ",XLDT32 Xltek 32 Channel Desktop Video EEG System XLLT32 Xltek 32 Channel Laptop Video EEG System Review/Monitoring Station,GU2 7AA
CHS Estates,L2 Estates,02/11/2022,Electricity,Estates Operations,Opus Energy Ltd,42150765,"94,353.60 ",Mains electricity HRI,"YO8 8PH	"
Community Division,Community Nursing,23/11/2022,Training Expenses,End Of Life & Palliative care,Overgate Hospice,226,"34,738.98 ",End of Life Educator - 6 Months Apr 22 - Sep 22,HX5 0QY
Community Division,Community Nursing,18/11/2022,Training Expenses,End Of Life & Palliative care,Overgate Hospice,240,"34,738.98 ",End of Life Educator - 6 Months Oct 22 - Mar 23,HX5 0QY
CHS Estates,L2 Estates,11/11/2022,Imaging Equipment Maintenance,Maintenance & Leases,Philips Electronics Uk Ltd,9020925704,"72,324.14 ",Year 7 of 7.  Maintenance of MRI Scanner Ingenia 1.5T.Year 7 period: 12/10/22 -11/10/23,GU2 8XG
Pmu,Pmu,02/11/2022,Contract : Other External,Pmu,Pilz Ltd,HPS.2022.09,"46,933.18 ",POV03W: 50% share of gross margin Povidone/iodine product (September receipts),S75 3SP
Pmu,Pmu,25/11/2022,Contract : Other External,Pmu,Pilz Ltd,HPS.2022.10,"65,717.50 ",POV03W: 50% share of gross margin Povidone/iodine product (October receipts),S75 3SP
Surgery & Anaesthetics,Surgical Divisional Support,04/11/2022,Healthcare From Commercial Sector,Support Services,Pioneer Healthcare Ltd,124,"25,620.00 ",Insourcing Services,S10 5UB
Surgery & Anaesthetics,Surgical Divisional Support,04/11/2022,Healthcare From Commercial Sector,Support Services,Pioneer Healthcare Ltd,126,"53,270.00 ",Insourcing Services,S10 5UB
Surgery & Anaesthetics,Surgical Divisional Support,25/11/2022,Healthcare From Commercial Sector,Support Services,Pioneer Healthcare Ltd,168,"47,971.23 ",Insourcing Services,S10 5UB
Surgery & Anaesthetics,Surgical Divisional Support,25/11/2022,Healthcare From Commercial Sector,Support Services,Pioneer Healthcare Ltd,18,"66,050.00 ",Insourcing Services,S10 5UB
Surgery & Anaesthetics,Surgical Divisional Support,04/11/2022,Healthcare From Commercial Sector,Support Services,Pioneer Healthcare Ltd,201,"53,270.00 ",Insourcing Services,S10 5UB
Surgery & Anaesthetics,Surgical Divisional Support,25/11/2022,Healthcare From Commercial Sector,Support Services,Pioneer Healthcare Ltd,60,"59,932.93 ",Insourcing Services,S10 5UB
Surgery & Anaesthetics,Surgical Divisional Support,25/11/2022,Healthcare From Commercial Sector,Support Services,Pioneer Healthcare Ltd,OPNSGE3590,"26,307.00 ",Insourcing ENT Theatre May 2022 (Paeds PH Book) - 21,S10 5UB
Corporate Services,Quality,18/11/2022,Computer Software / License  Fees,Quality,Premier It Group Ltd,10386,"47,770.80 ",PReP Revalidation Licences - 360 Feedback21/09/2022 to 20/09/2024,SW1P 2AL
Balance Sheet,Fixed Assets,25/11/2022,Additions - Assets Under Construction,Capital (Estates),Protec Fire Detection Plc,OP/I886430,"32,213.16 ",HRI - ENDOSCOPY - REPLACE EXISTING FAILED EMERGENCY LIGHTING LUMINAIRES - PANEL 10 ENDDOSCOPY - STRIP OUT 110V SUPPLIES AND ASSOCIATED db  REMOVAL/DISPOSAL OF CENTRAL BATTERY AS PER YOUR QUOTE,BB9 6RT
Balance Sheet,Fixed Assets,25/11/2022,Additions - Assets Under Construction,Capital (Estates),Protec Fire Detection Plc,OP/I886431,"37,862.54 ",EMERGENCY LIGHTING - SUPPLY AND INSTALLATION OF EMERGECY LIGHTING AS PER YOUR QUOTE (DAY SURGERY  THEATRE & PENTHOUSE) PART OF PANEL 4 ,BB9 6RT
Balance Sheet,L2 Current Assets,04/11/2022,Finished Processed Goods,Stock & Work In Progress,Qualasept Ltd,SQS0161851,"28,350.00 ",Pharmaceutical purchase,SN13 9RG
Medical Division,Acute Medical,25/11/2022,B5 Agency Nursing,General Medicine,Red Group Personnel Ltd,301022CH,"10,203.67 ",B5 Agency Nursing,HA3 5AB
Surgery & Anaesthetics,General Surgery,25/11/2022,B5 Agency Nursing,General Surgery,Red Group Personnel Ltd,301022CH,621.97 ,B5 Agency Nursing,HA3 5AB
Medical Division,Acute Medical,25/11/2022,B5 Agency Nursing,Geriatric Medicine,Red Group Personnel Ltd,301022CH,"6,267.17 ",B5 Agency Nursing,HA3 5AB
Medical Division,Integrated Medical Specialities,25/11/2022,B5 Agency Nursing,Ims Stroke / Rehabilitation,Red Group Personnel Ltd,301022CH,758.64 ,B5 Agency Nursing,HA3 5AB
Medical Division,Integrated Medical Specialities,25/11/2022,B5 Agency Nursing,Medical Oncology,Red Group Personnel Ltd,301022CH,"1,172.47 ",B5 Agency Nursing,HA3 5AB
Surgery & Anaesthetics,Operating Services,25/11/2022,B5 Agency Nursing,Operating Services,Red Group Personnel Ltd,301022CH,"9,495.36 ",B5 Agency Nursing,HA3 5AB
Medical Division,Medical Specialities,25/11/2022,B5 Agency Nursing,Respiratory,Red Group Personnel Ltd,301022CH,"7,100.04 ",B5 Agency Nursing,HA3 5AB
Surgery & Anaesthetics,Orthopaedics,25/11/2022,B5 Agency Nursing,Trauma & Orthopaedics,Red Group Personnel Ltd,301022CH,621.97 ,B5 Agency Nursing,HA3 5AB
Medical Division,Emergency Medicine,01/11/2022,B5 Agency Nursing,A&E Nursing,Icare24 Ltd,INV34430A,"3,803.34 ",B5 Agency Nursing,B16 8QG
Corporate Services,Central Operations Team CORP,01/11/2022,B5 Agency Nursing,Central Operations Team CORP,Icare24 Ltd,INV34430A,"3,472.90 ",B5 Agency Nursing,B16 8QG
Medical Division,Medical Specialities,01/11/2022,B5 Agency Nursing,Gastroenterology,Icare24 Ltd,INV34430A,"1,111.77 ",B5 Agency Nursing,B16 8QG
Medical Division,Acute Medical,01/11/2022,B5 Agency Nursing,General Medicine,Icare24 Ltd,INV34430A,"2,760.23 ",B5 Agency Nursing,B16 8QG
Surgery & Anaesthetics,General Surgery,01/11/2022,B5 Agency Nursing,General Surgery,Icare24 Ltd,INV34430A,"4,052.28 ",B5 Agency Nursing,B16 8QG
Medical Division,Acute Medical,01/11/2022,B5 Agency Nursing,Geriatric Medicine,Icare24 Ltd,INV34430A,"2,719.20 ",B5 Agency Nursing,B16 8QG
Medical Division,Integrated Medical Specialities,01/11/2022,B5 Agency Nursing,Ims Stroke / Rehabilitation,Icare24 Ltd,INV34430A,"1,126.84 ",B5 Agency Nursing,B16 8QG
Surgery & Anaesthetics,Operating Services,01/11/2022,B5 Agency Nursing,Operating Services,Icare24 Ltd,INV34430A,"1,168.30 ",B5 Agency Nursing,B16 8QG
Medical Division,Medical Specialities,01/11/2022,B5 Agency Nursing,Respiratory,Icare24 Ltd,INV34430A,543.84 ,B5 Agency Nursing,B16 8QG
Surgery & Anaesthetics,Orthopaedics,01/11/2022,B5 Agency Nursing,Trauma & Orthopaedics,Icare24 Ltd,INV34430A,"2,576.47 ",B5 Agency Nursing,B16 8QG
Medical Division,Emergency Medicine,01/11/2022,B5 Agency Nursing,A&E Nursing,Icare24 Ltd,INV39417A,"4,439.41 ",B5 Agency Nursing,B16 8QG
Corporate Services,Central Operations Team CORP,01/11/2022,B5 Agency Nursing,Central Operations Team CORP,Icare24 Ltd,INV39417A,590.41 ,B5 Agency Nursing,B16 8QG
Medical Division,Acute Medical,01/11/2022,B5 Agency Nursing,General Medicine,Icare24 Ltd,INV39417A,"3,251.22 ",B5 Agency Nursing,B16 8QG
Surgery & Anaesthetics,General Surgery,01/11/2022,B5 Agency Nursing,General Surgery,Icare24 Ltd,INV39417A,"2,336.58 ",B5 Agency Nursing,B16 8QG
Medical Division,Acute Medical,01/11/2022,B5 Agency Nursing,Geriatric Medicine,Icare24 Ltd,INV39417A,"3,867.49 ",B5 Agency Nursing,B16 8QG
Families & Specialist Services,Womens,01/11/2022,B5 Agency Nursing,Gynaecology,Icare24 Ltd,INV39417A,"1,369.33 ",B5 Agency Nursing,B16 8QG
Medical Division,Integrated Medical Specialities,01/11/2022,B5 Agency Nursing,Ims Stroke / Rehabilitation,Icare24 Ltd,INV39417A,563.42 ,B5 Agency Nursing,B16 8QG
Surgery & Anaesthetics,Operating Services,01/11/2022,B5 Agency Nursing,Operating Services,Icare24 Ltd,INV39417A,"3,006.94 ",B5 Agency Nursing,B16 8QG
Medical Division,Medical Specialities,01/11/2022,B5 Agency Nursing,Respiratory,Icare24 Ltd,INV39417A,"1,724.08 ",B5 Agency Nursing,B16 8QG
Surgery & Anaesthetics,Orthopaedics,01/11/2022,B5 Agency Nursing,Trauma & Orthopaedics,Icare24 Ltd,INV39417A,124.98 ,B5 Agency Nursing,B16 8QG
Medical Division,Emergency Medicine,04/11/2022,B5 Agency Nursing,A&E Nursing,Icare24 Ltd,INV44473A,"5,693.43 ",B5 Agency Nursing,B16 8QG
Medical Division,Acute Medical,04/11/2022,B5 Agency Nursing,General Medicine,Icare24 Ltd,INV44473A,"4,450.49 ",B5 Agency Nursing,B16 8QG
Surgery & Anaesthetics,General Surgery,04/11/2022,B5 Agency Nursing,General Surgery,Icare24 Ltd,INV44473A,571.90 ,B5 Agency Nursing,B16 8QG
Medical Division,Acute Medical,04/11/2022,B5 Agency Nursing,Geriatric Medicine,Icare24 Ltd,INV44473A,"6,779.20 ",B5 Agency Nursing,B16 8QG
Medical Division,Integrated Medical Specialities,04/11/2022,B5 Agency Nursing,Ims Stroke / Rehabilitation,Icare24 Ltd,INV44473A,"4,838.21 ",B5 Agency Nursing,B16 8QG
Medical Division,Integrated Medical Specialities,04/11/2022,B5 Agency Nursing,Medical Oncology,Icare24 Ltd,INV44473A,"1,202.24 ",B5 Agency Nursing,B16 8QG
Families & Specialist Services,Womens,04/11/2022,B5 Agency Nursing,Obstetrics,Icare24 Ltd,INV44473A,"2,047.23 ",B5 Agency Nursing,B16 8QG
Surgery & Anaesthetics,Operating Services,04/11/2022,B5 Agency Nursing,Operating Services,Icare24 Ltd,INV44473A,"2,885.55 ",B5 Agency Nursing,B16 8QG
Medical Division,Medical Specialities,04/11/2022,B5 Agency Nursing,Respiratory,Icare24 Ltd,INV44473A,"1,163.30 ",B5 Agency Nursing,B16 8QG
Surgery & Anaesthetics,Orthopaedics,04/11/2022,B5 Agency Nursing,Trauma & Orthopaedics,Icare24 Ltd,INV44473A,"2,274.13 ",B5 Agency Nursing,B16 8QG
Balance Sheet,L2 Current Assets,25/11/2022,Finished Processed Goods,Stock & Work In Progress,Roche Products Ltd,1322258655,"29,348.80 ",Pharmaceutical purchase,AL7 1TW
Balance Sheet,L2 Current Assets,25/11/2022,Finished Processed Goods,Stock & Work In Progress,Roche Products Ltd,1322258832,"30,935.88 ",Pharmaceutical purchase,AL7 1TW
Medical Division,Medical Divisional Management,25/11/2022,Computer Maintenance,Medical Divisional Management Support Services,Royal Free London NHS Foundation Trust,10212427,"38,000.00 ",Implementation Support Costs for Blue Prism processes as per MOU,NW3 2QG
CHS Estates,L2 Estates,02/11/2022,Gas,Estates Operations,SEFE Energy Limited,INV02519550,"116,263.14 ",Mains gas HRI,M15 4RP
CHS Estates,L2 Estates,02/11/2022,Gas,Estates Operations,SEFE Energy Limited,INV02566254,"113,845.70 ",Mains gas HRI,M15 4RP
CHS Estates,L2 Estates,18/11/2022,Gas,Estates Operations,SEFE Energy Limited,INV02649140,"117,118.15 ",Mains gas HRI,M15 4RP
Balance Sheet,L2 Current Assets,04/11/2022,Finished Processed Goods,Stock & Work In Progress,Seqirus UK Ltd,9160132394,"50,097.60 ",B5 Agency Nursing,SL6 8AA
Families & Specialist Services,Radiology,01/12/2022,Med Surg Eqpt Leasing,Mri,Sg Radiology & Associates Ltd,SCN-144,"-28,800.00 ",lease of two SG mobile MRI units for CRH.,WF1 3QQ
Families & Specialist Services,Radiology,01/12/2022,Med Surg Eqpt Leasing,Mri,Sg Radiology & Associates Ltd,SI-2788,"31,680.00 ",lease of two SG mobile MRI units for CRH.,WF1 3QQ
Families & Specialist Services,Radiology,01/12/2022,Med Surg Eqpt Leasing,Mri,Sg Radiology & Associates Ltd,SI-2788,"31,680.00 ",lease of two SG mobile MRI units for CRH.,WF1 3QQ
Families & Specialist Services,Radiology,01/12/2022,Med Surg Eqpt Leasing,Mri,Sg Radiology & Associates Ltd,SI-2788,"31,680.00 ",lease of two SG mobile MRI units for CRH.,WF1 3QQ
Families & Specialist Services,Pathology,18/11/2022,Laboratory Chemicals,Path Chemical Pathology,Siemens Healthcare Diagnostics Ltd,114812803,"156,629.44 ",CHFT Biochemistry - Laboratory managed Service Contract,GU16 8QD
Health Informatics,Corporate And Operations,25/11/2022,Computer Software / License  Fees,Business Support,Softcat Plc,INVUK621684,"55,964.88 ",3 Years (36 months) 57 x BMC Helix ITSM on BMC Cloud - Suite Concurrent User License  per concurrent user – SaaS 30-SEP-2020 to 29-SEP-2023 (57 x £81.82 = £167 894.64 = £55 964.88 per year),SL7 1TB
Health Informatics,Corporate And Operations,25/11/2022,Computer Software / License  Fees,Business Support,Softcat Plc,INVUK621684,"82,791.72 ",3 Years (36 months) 253 x BMC Helix ITSM on BMC Cloud - Suite User License  per named user – SaaS 30-SEP-2020 to 29-SEP-2023 (253 x £27.27 = £248 375 16 = £82 791.72 per year),SL7 1TB
Health Informatics,Corporate And Operations,25/11/2022,Computer Software / License  Fees,Business Support,Softcat Plc,INVUK621684,"2,513.04 ",3 Years (36 months)  1 x BMC Helix Non-Standard Integration on BMC Cloud  30-SEP-2020 to 29-SEP-2023 (1 x £209.42 =£7 539.12 = £2 513.04 per year),SL7 1TB
Balance Sheet,Fixed Assets,16/11/2022,Additions - Assets Under Construction,Capital (Fss),Solidsoft Reply Limited,3221000236,"36,000.00 ",INSTALLATION AND SUPPLY OF AN ELECTRONIC CONTROLLED DRUG REGISTER. COST: £57.791 + VAT. INITIAL PAYMENT OF £27 791.00 TO BE PAID WITH THE BALANCE PAID ON COMPLETION OF DEVELOPMENT,RG24 8AG
Surgery & Anaesthetics,Surgical Divisional Support,23/11/2022,Contractual Clinical Services,Independent Sector,Spire Healthcare Ltd,RWYELDICF2223M04,"73,021.19 ",Provision of Elective Activity on behalf of CHFT ,RG1 9PL
Surgery & Anaesthetics,Surgical Divisional Support,23/11/2022,Contractual Clinical Services,Independent Sector,Spire Healthcare Ltd,RWYELDICF2223M05,"42,408.36 ",Provision of Elective Activity on behalf of CHFT ,RG1 9PL
Community Division,Community Therapies,16/11/2022,Patients Appliances : Purchase,Patient Appliances,Taycare Medical Ltd,21549,"46,611.94 ",supply of specialist orthotic products,LS12 6LL
Families & Specialist Services,Radiology,16/11/2022,Contractual Clinical Services,Rad General,Telemedicine Clinic Ltd,20220426,"114,018.99 ",teleradiology reporting ,B3 2RT
Families & Specialist Services,Radiology,25/11/2022,Contractual Clinical Services,Rad General,Telemedicine Clinic Ltd,20220482,"131,521.81 ",teleradiology reporting ,B3 2RT
Recharges,Recharges,04/11/2022,Healthcare From NHS Trusts,Recharges,The Leeds Teaching Hospitals NHS Trust,1410197427,"247,758.99 ",BLOOD SCIENCES - Blood Sciences - 454400 - 4170 CLINICAL IMMUNOLOGY - LGI-Clinical Immunology -,LS9 7TF
CHS Estates,L2 Estates,23/11/2022,Cleaning Equipment,Medical Physics,The Leeds Teaching Hospitals NHS Trust,1410196992,"220,059.00 ",Share of backdated B Braun contract renewal based on 17.1% pre pandemic activity,LS9 7TF
Families & Specialist Services,Radiology,16/11/2022,Healthcare From Independent Sector,Ultrasound,This Is My: Ultrasound Services Ltd,INV-1069,"29,430.00 ",Ultrasound Services for August 981 scans @£30 each = £29430,LS11 5QN
Balance Sheet,L2 Current Assets,25/11/2022,Other Debtors < One Year,Other Debtors,Tuskerdirect Ltd,66719,"125,843.99 ",Salary Sacrifice cars,WD18 8YF
Health Informatics,Corporate And Operations,11/11/2022,Data Lines,It Support,Virgin Media Business Ltd,444221-002,"-59,119.61 ",VMB Account 444221 Install - IPVPN (Net - Rental-High Capacity Services (Net) - Rental - IPVPN (Net). ,BD4 8PW
Health Informatics,Corporate And Operations,11/11/2022,Data Lines,It Support,Virgin Media Business Ltd,444221-004,"110,326.96 ",VMB Account 444221 Install - IPVPN (Net - Rental-High Capacity Services (Net) - Rental - IPVPN (Net). ,BD4 8PW
Recharges,Recharges,23/11/2022,Mobile Phones,Recharges,Vodafone Ltd,102511397,"25,392.45 ",Corporate Mobile Phones (usage),RG14 5FF
Corporate Services,Central Operations Team CORP,02/11/2022,Ambulance Car Service,Central Operations Team CORP,Yorkshire Ambulance Service NHS Trust,2810032692,"35,371.00 ",Patient transport,WF2 0XG
Medical Division,Emergency Medicine,09/11/2022,B5 Agency Nursing,A&E Nursing,Your Nurse Ltd,YNLX46,"27,076.23 ",B5 Agency Nursing,EC3V 0EH
Medical Division,Medical Specialities,09/11/2022,B5 Agency Nursing,Cardiology,Your Nurse Ltd,YNLX46,"4,129.97 ",B5 Agency Nursing,EC3V 0EH
Surgery & Anaesthetics,Critical Care,09/11/2022,B5 Agency Nursing,Critical Care,Your Nurse Ltd,YNLX46,"1,421.92 ",B5 Agency Nursing,EC3V 0EH
Surgery & Anaesthetics,Head & Neck,09/11/2022,B5 Agency Nursing,Ent,Your Nurse Ltd,YNLX46,609.04 ,B5 Agency Nursing,EC3V 0EH
Medical Division,Medical Specialities,09/11/2022,B5 Agency Nursing,Gastroenterology,Your Nurse Ltd,YNLX46,"5,197.57 ",B5 Agency Nursing,EC3V 0EH
Medical Division,Acute Medical,09/11/2022,B5 Agency Nursing,General Medicine,Your Nurse Ltd,YNLX46,"20,301.26 ",B5 Agency Nursing,EC3V 0EH
Surgery & Anaesthetics,General Surgery,09/11/2022,B5 Agency Nursing,General Surgery,Your Nurse Ltd,YNLX46,"1,341.65 ",B5 Agency Nursing,EC3V 0EH
Medical Division,Acute Medical,09/11/2022,B5 Agency Nursing,Geriatric Medicine,Your Nurse Ltd,YNLX46,"19,042.31 ",B5 Agency Nursing,EC3V 0EH
Medical Division,Integrated Medical Specialities,09/11/2022,B5 Agency Nursing,Ims Stroke / Rehabilitation,Your Nurse Ltd,YNLX46,"7,715.35 ",B5 Agency Nursing,EC3V 0EH
Medical Division,Integrated Medical Specialities,09/11/2022,B5 Agency Nursing,Medical Oncology,Your Nurse Ltd,YNLX46,"6,002.92 ",B5 Agency Nursing,EC3V 0EH
Families & Specialist Services,Womens,09/11/2022,B5 Agency Nursing,Obstetrics,Your Nurse Ltd,YNLX46,"5,023.31 ",B5 Agency Nursing,EC3V 0EH
Surgery & Anaesthetics,Operating Services,09/11/2022,B5 Agency Nursing,Operating Services,Your Nurse Ltd,YNLX46,"8,721.67 ",B5 Agency Nursing,EC3V 0EH
Medical Division,Medical Specialities,09/11/2022,B5 Agency Nursing,Respiratory,Your Nurse Ltd,YNLX46,"6,554.43 ",B5 Agency Nursing,EC3V 0EH
Surgery & Anaesthetics,Orthopaedics,09/11/2022,B5 Agency Nursing,Trauma & Orthopaedics,Your Nurse Ltd,YNLX46,"3,130.85 ",B5 Agency Nursing,EC3V 0EH
Medical Division,Emergency Medicine,16/11/2022,B5 Agency Nursing,A&E Nursing,Your Nurse Ltd,YNLX47,"28,794.86 ",B5 Agency Nursing,EC3V 0EH
Medical Division,Medical Specialities,16/11/2022,B5 Agency Nursing,Cardiology,Your Nurse Ltd,YNLX47,"4,072.56 ",B5 Agency Nursing,EC3V 0EH
Corporate Services,Central Operations Team CORP,16/11/2022,B5 Agency Nursing,Central Operations Team CORP,Your Nurse Ltd,YNLX47,601.27 ,B5 Agency Nursing,EC3V 0EH
Surgery & Anaesthetics,Head & Neck,16/11/2022,B5 Agency Nursing,Ent,Your Nurse Ltd,YNLX47,601.27 ,B5 Agency Nursing,EC3V 0EH
Medical Division,Medical Specialities,16/11/2022,B5 Agency Nursing,Gastroenterology,Your Nurse Ltd,YNLX47,"2,799.10 ",B5 Agency Nursing,EC3V 0EH
Medical Division,Acute Medical,16/11/2022,B5 Agency Nursing,General Medicine,Your Nurse Ltd,YNLX47,"19,914.23 ",B5 Agency Nursing,EC3V 0EH
Surgery & Anaesthetics,General Surgery,16/11/2022,B5 Agency Nursing,General Surgery,Your Nurse Ltd,YNLX47,"2,441.71 ",B5 Agency Nursing,EC3V 0EH
Medical Division,Acute Medical,16/11/2022,B5 Agency Nursing,Geriatric Medicine,Your Nurse Ltd,YNLX47,"11,365.51 ",B5 Agency Nursing,EC3V 0EH
Families & Specialist Services,Womens,16/11/2022,B5 Agency Nursing,Gynaecology,Your Nurse Ltd,YNLX47,706.19 ,B5 Agency Nursing,EC3V 0EH
Medical Division,Integrated Medical Specialities,16/11/2022,B5 Agency Nursing,Ims Stroke / Rehabilitation,Your Nurse Ltd,YNLX47,"13,034.11 ",B5 Agency Nursing,EC3V 0EH
Families & Specialist Services,Childrens,16/11/2022,B5 Agency Nursing,Inpatients Paediatrics,Your Nurse Ltd,YNLX47,"2,141.31 ",B5 Agency Nursing,EC3V 0EH
Medical Division,Integrated Medical Specialities,16/11/2022,B5 Agency Nursing,Medical Oncology,Your Nurse Ltd,YNLX47,"4,652.94 ",B5 Agency Nursing,EC3V 0EH
Families & Specialist Services,Womens,16/11/2022,B5 Agency Nursing,Obstetrics,Your Nurse Ltd,YNLX47,"6,382.39 ",B5 Agency Nursing,EC3V 0EH
Surgery & Anaesthetics,Operating Services,16/11/2022,B5 Agency Nursing,Operating Services,Your Nurse Ltd,YNLX47,"12,212.04 ",B5 Agency Nursing,EC3V 0EH
Medical Division,Medical Specialities,16/11/2022,B5 Agency Nursing,Respiratory,Your Nurse Ltd,YNLX47,"10,773.50 ",B5 Agency Nursing,EC3V 0EH
Surgery & Anaesthetics,Orthopaedics,16/11/2022,B5 Agency Nursing,Trauma & Orthopaedics,Your Nurse Ltd,YNLX47,"4,053.15 ",B5 Agency Nursing,EC3V 0EH
Medical Division,Emergency Medicine,18/11/2022,B5 Agency Nursing,A&E Nursing,Your Nurse Ltd,YNLX48,"25,011.49 ",B5 Agency Nursing,EC3V 0EH
Medical Division,Medical Specialities,18/11/2022,B5 Agency Nursing,Cardiology,Your Nurse Ltd,YNLX48,"4,181.22 ",B5 Agency Nursing,EC3V 0EH
Medical Division,Medical Specialities,18/11/2022,B5 Agency Nursing,Gastroenterology,Your Nurse Ltd,YNLX48,"6,377.01 ",B5 Agency Nursing,EC3V 0EH
Medical Division,Acute Medical,18/11/2022,B5 Agency Nursing,General Medicine,Your Nurse Ltd,YNLX48,"12,332.94 ",B5 Agency Nursing,EC3V 0EH
Surgery & Anaesthetics,General Surgery,18/11/2022,B5 Agency Nursing,General Surgery,Your Nurse Ltd,YNLX48,"3,111.93 ",B5 Agency Nursing,EC3V 0EH
Medical Division,Acute Medical,18/11/2022,B5 Agency Nursing,Geriatric Medicine,Your Nurse Ltd,YNLX48,"13,191.58 ",B5 Agency Nursing,EC3V 0EH
Families & Specialist Services,Womens,18/11/2022,B5 Agency Nursing,Gynaecology,Your Nurse Ltd,YNLX48,706.19 ,B5 Agency Nursing,EC3V 0EH
Medical Division,Integrated Medical Specialities,18/11/2022,B5 Agency Nursing,Ims Stroke / Rehabilitation,Your Nurse Ltd,YNLX48,"11,321.03 ",B5 Agency Nursing,EC3V 0EH
Families & Specialist Services,Childrens,18/11/2022,B5 Agency Nursing,Inpatients Paediatrics,Your Nurse Ltd,YNLX48,"2,491.40 ",B5 Agency Nursing,EC3V 0EH
Medical Division,Integrated Medical Specialities,18/11/2022,B5 Agency Nursing,Medical Oncology,Your Nurse Ltd,YNLX48,"4,831.21 ",B5 Agency Nursing,EC3V 0EH
Families & Specialist Services,Womens,18/11/2022,B5 Agency Nursing,Obstetrics,Your Nurse Ltd,YNLX48,"2,566.99 ",B5 Agency Nursing,EC3V 0EH
Surgery & Anaesthetics,Operating Services,18/11/2022,B5 Agency Nursing,Operating Services,Your Nurse Ltd,YNLX48,"7,169.83 ",B5 Agency Nursing,EC3V 0EH
Medical Division,Medical Specialities,18/11/2022,B5 Agency Nursing,Respiratory,Your Nurse Ltd,YNLX48,"6,684.71 ",B5 Agency Nursing,EC3V 0EH
Surgery & Anaesthetics,Orthopaedics,18/11/2022,B5 Agency Nursing,Trauma & Orthopaedics,Your Nurse Ltd,YNLX48,"6,113.41 ",B5 Agency Nursing,EC3V 0EH
Medical Division,Emergency Medicine,25/11/2022,B5 Agency Nursing,A&E Nursing,Your Nurse Ltd,YNLX49,"18,221.63 ",B5 Agency Nursing,EC3V 0EH
Medical Division,Medical Specialities,25/11/2022,B5 Agency Nursing,Cardiology,Your Nurse Ltd,YNLX49,"4,131.59 ",B5 Agency Nursing,EC3V 0EH
Corporate Services,Central Operations Team CORP,25/11/2022,B5 Agency Nursing,Central Operations Team CORP,Your Nurse Ltd,YNLX49,"2,500.72 ",B5 Agency Nursing,EC3V 0EH
Medical Division,Medical Specialities,25/11/2022,B5 Agency Nursing,Gastroenterology,Your Nurse Ltd,YNLX49,"5,403.82 ",B5 Agency Nursing,EC3V 0EH
Medical Division,Acute Medical,25/11/2022,B5 Agency Nursing,General Medicine,Your Nurse Ltd,YNLX49,"17,868.35 ",B5 Agency Nursing,EC3V 0EH
Surgery & Anaesthetics,General Surgery,25/11/2022,B5 Agency Nursing,General Surgery,Your Nurse Ltd,YNLX49,"7,433.44 ",B5 Agency Nursing,EC3V 0EH
Medical Division,Acute Medical,25/11/2022,B5 Agency Nursing,Geriatric Medicine,Your Nurse Ltd,YNLX49,"10,846.62 ",B5 Agency Nursing,EC3V 0EH
Families & Specialist Services,Womens,25/11/2022,B5 Agency Nursing,Gynaecology,Your Nurse Ltd,YNLX49,706.19 ,B5 Agency Nursing,EC3V 0EH
Medical Division,Integrated Medical Specialities,25/11/2022,B5 Agency Nursing,Ims Stroke / Rehabilitation,Your Nurse Ltd,YNLX49,"10,117.29 ",B5 Agency Nursing,EC3V 0EH
Families & Specialist Services,Childrens,25/11/2022,B5 Agency Nursing,Inpatients Paediatrics,Your Nurse Ltd,YNLX49,"3,157.06 ",B5 Agency Nursing,EC3V 0EH
Medical Division,Integrated Medical Specialities,25/11/2022,B5 Agency Nursing,Medical Oncology,Your Nurse Ltd,YNLX49,"2,361.46 ",B5 Agency Nursing,EC3V 0EH
Families & Specialist Services,Womens,25/11/2022,B5 Agency Nursing,Obstetrics,Your Nurse Ltd,YNLX49,"1,946.85 ",B5 Agency Nursing,EC3V 0EH
Surgery & Anaesthetics,Operating Services,25/11/2022,B5 Agency Nursing,Operating Services,Your Nurse Ltd,YNLX49,"8,140.08 ",B5 Agency Nursing,EC3V 0EH
Medical Division,Medical Specialities,25/11/2022,B5 Agency Nursing,Respiratory,Your Nurse Ltd,YNLX49,"5,937.41 ",B5 Agency Nursing,EC3V 0EH
Surgery & Anaesthetics,Orthopaedics,25/11/2022,B5 Agency Nursing,Trauma & Orthopaedics,Your Nurse Ltd,YNLX49,"4,307.30 ",B5 Agency Nursing,EC3V 0EH
